bitfinex/quotes_SOLUSD_20250315
["timestamp","ask_amount","ask_price","bid_price","bid_amount"]
[1742060682288,34.2071628,136.01,135.98,18.385]
[1742060682685,14.2071628,136.0,135.97,7.3545]
[1742060682875,14.2071628,135.99,135.97,7.3545]
[1742060684471,20.0,136.01,135.97,7.3545]
[1742060684472,14.2071628,135.98,135.97,7.3545]
[1742060684667,14.2071628,135.98,135.96,10.22185066]
[1742060684889,14.2071628,135.97,135.96,10.22185066]
[1742060687697,14.2071628,135.97,135.96,17.57695066]
[1742060689190,14.2071628,135.99,135.94,14.2071628]
[1742060689569,14.2071628,135.98,135.94,14.2071628]
[1742060689769,14.2071628,135.98,135.93,14.2071628]
[1742060690206,14.2071628,135.98,135.92,14.2071628]
[1742060690795,14.2071628,135.98,135.92,50.9934628]
[1742060691871,14.2071628,135.98,135.92,76.7437628]
[1742060694495,14.2071628,135.98,135.92,159.5437628]
[1742060695892,14.2071628,135.97,135.92,159.5437628]
[1742060697180,14.2071628,135.98,135.92,159.5437628]
[1742060697375,14.2701628,135.98,135.92,159.5437628]
[1742060698796,14.2701628,135.98,135.92,145.3366]
[1742060699493,14.2071628,135.97,135.92,145.3366]
[1742060699679,14.2071628,135.97,135.92,108.5503]
[1742060699885,14.2071628,135.96,135.92,108.5503]
[1742060700502,14.2071628,135.95,135.92,108.5503]
[1742060701186,14.2071628,135.96,135.92,108.5503]
[1742060701590,14.2071628,135.95,135.92,108.5503]
[1742060701891,18.60943807,135.95,135.92,108.5503]
[1742060703589,4.40227527,135.94,135.92,108.5503]
[1742060704503,14.2071628,135.96,135.92,108.5503]
[1742060705882,4.40594184,135.95,135.92,108.5503]
[1742060706303,4.40594184,135.95,135.92,122.7574628]
[1742060706818,4.184e-05,135.95,135.93,14.2071628]
[1742060706993,4.184e-05,135.95,135.92,122.7574628]
[1742060707187,4.184e-05,135.95,135.93,14.2071628]
[1742060707613,0.063,135.98,135.94,46.5536628]
[1742060707813,0.063,135.98,135.96,14.2071628]
[1742060708026,0.063,136.0,135.96,14.2071628]
[1742060708200,0.063,136.0,135.95,1.6456]
[1742060708201,0.063,136.0,135.97,14.2071628]
[1742060709217,11.47174371,136.06,135.99,14.2071628]
[1742060709423,14.2071628,136.04,135.99,14.2071628]
[1742060709719,14.2071628,136.04,136.0,25.7352]
[1742060710289,14.2071628,136.03,136.0,25.7352]
[1742060711120,14.2071628,136.01,136.0,7.3529]
[1742060711695,14.2071628,136.01,135.97,18.3854]
[1742060711893,14.2071628,136.0,135.97,18.3854]
[1742060712701,14.2071628,136.01,135.97,18.3854]
[1742060714293,14.2071628,136.02,135.97,18.3854]
[1742060714529,14.2071628,136.02,135.97,32.5925628]
[1742060715414,14.2071628,136.02,135.97,39.9470628]
[1742060718210,14.2071628,136.02,135.97,25.7399]
[1742060719022,4.40069367,136.01,135.97,25.7399]
[1742060720013,14.2071628,136.02,135.97,25.7399]
[1742060720213,14.2071628,136.01,135.97,25.7399]
[1742060720514,0.063,136.04,135.97,7.3545]
[1742060720515,14.2071628,135.99,135.97,7.3545]
[1742060722123,14.2071628,135.98,135.96,7.3551]
[1742060722322,14.2071628,135.98,135.97,0.03]
[1742060723034,18.6085671,135.98,135.97,0.03]
[1742060723327,28.73,135.97,135.96,7.3551]
[1742060724720,14.2071628,136.0,135.96,25.7428]
[1742060724922,25.74190651,136.02,135.96,39.9499628]
[1742060725116,25.74190651,136.02,135.97,15.8736628]
[1742060725435,4.4014074,136.01,135.97,15.8736628]
[1742060725933,4.4014074,136.01,135.97,1.6665]
[1742060726115,18.6085702,136.01,135.97,1.6665]
[1742060726737,4.4014074,136.0,135.98,7.354]
[1742060726938,14.2071628,135.99,135.98,7.354]
[1742060727434,14.2071628,135.99,135.94,18.3903]
[1742060727629,14.2071628,135.98,135.94,18.3903]
[1742060727942,14.2071628,135.99,135.94,18.3903]
[1742060728232,4.4014074,135.99,135.94,40.59329818]
[1742060728440,26.60440558,135.99,135.94,40.59329818]
[1742060728942,26.60440558,135.99,135.94,47.94939818]
[1742060729339,4.4014074,135.98,135.94,25.7464]
[1742060729517,26.60440558,135.98,135.94,25.7464]
[1742060730645,26.60440558,135.98,135.94,7.3561]
[1742060731031,4.4014074,135.97,135.93,7.3567]
[1742060731645,4.4014074,135.97,135.93,29.55969818]
[1742060731948,4.4014074,135.97,135.93,47.95149818]
[1742060732628,22.20299818,135.98,135.93,47.95149818]
[1742060734727,22.20299818,135.98,135.93,25.7485]
[1742060735226,29.83992132,136.01,135.93,25.7485]
[1742060735227,26.6053932,135.97,135.93,25.7485]
[1742060735633,26.6053932,135.97,135.93,25.7785]
[1742060735835,22.20299818,135.96,135.93,7.3867]
[1742060736250,26.6683932,135.97,135.93,7.3867]
[1742060736744,4.40239502,135.96,135.93,7.3867]
[1742060738048,22.26599818,135.97,135.93,7.3867]
[1742060739432,0.063,135.97,135.93,7.3867]
[1742060739633,0.063,135.97,135.93,47.98149818]
[1742060740138,0.063,135.97,135.93,25.7785]
[1742060740533,22.26599818,135.97,135.93,25.7785]
[1742060741024,22.20299818,135.96,135.93,7.3867]
[1742060741225,26.6041723,135.96,135.93,7.3867]
[1742060741548,26.6041723,135.96,135.93,0.03]
[1742060741549,4.40117412,135.96,135.93,0.03]
[1742060742145,22.26599818,135.97,135.93,0.03]
[1742060742847,4.40083465,135.96,135.93,0.03]
[1742060744053,22.26599818,135.97,135.93,0.03]
[1742060745649,22.20299818,135.96,135.93,0.03]
[1742060746345,22.20299818,135.95,135.93,0.03]
[1742060747247,4.40060691,135.94,135.93,0.03]
[1742060748347,26.60360509,135.94,135.93,0.03]
[1742060749534,26.88792823,135.94,135.93,0.03]
[1742060749740,49.09092641,135.94,135.93,0.03]
[1742060750265,102.93611122,135.94,135.93,0.03]
[1742060751432,102.93611122,135.94,135.85,1.5941]
[1742060751433,20.0,135.91,135.85,8.9549]
[1742060751739,14.22877281,135.87,135.85,8.9549]
[1742060752058,14.22877281,135.86,135.85,7.3608]
[1742060752765,14.22877281,135.86,135.84,7.3616]
[1742060753134,1.10156826,135.92,135.84,7.3616]
[1742060753339,14.22877281,135.92,135.87,14.22877281]
[1742060753660,14.22877281,135.9,135.87,6.56]
[1742060754880,14.22877281,135.9,135.88,7.3594]
[1742060756949,14.22877281,135.89,135.87,13.9197]
[1742060758172,14.22877281,135.89,135.87,7.3597]
[1742060758752,14.22877281,135.88,135.87,7.3597]
[1742060759275,14.22877281,135.89,135.87,7.3597]
[1742060760158,14.22877281,135.89,135.85,25.7636]
[1742060760372,14.22877281,135.9,135.85,39.99237281]
[1742060760563,34.22877281,135.9,135.85,39.99237281]
[1742060760766,14.22877281,135.88,135.87,0.03]
[1742060762073,14.22877281,135.89,135.87,0.03]
[1742060766279,14.51309595,135.89,135.87,0.03]
[1742060766472,14.22877281,135.88,135.87,0.03]
[1742060770788,14.51309595,135.88,135.87,0.03]
[1742060770989,21.87249595,135.88,135.87,0.03]
[1742060771673,14.51309595,135.88,135.87,0.03]
[1742060772274,26.25888276,135.88,135.87,0.03]
[1742060772586,18.89948276,135.88,135.87,0.03]
[1742060773482,26.25888276,135.88,135.87,0.03]
[1742060773785,44.90853162,135.88,135.87,0.03]
[1742060774481,37.54913162,135.88,135.87,0.03]
[1742060777689,44.90853162,135.88,135.87,0.03]
[1742060778387,46.01009988,135.88,135.87,0.03]
[1742060778767,109.44519112,135.88,135.87,0.03]
[1742060778987,20.0,135.85,135.83,2.4764405]
[1742060779284,14.22877281,135.84,135.83,2.4764405]
[1742060779591,40.52434481,135.84,135.83,2.4764405]
[1742060780872,44.91073162,135.84,135.83,2.4764405]
[1742060782893,14.22877281,135.78,135.76,13.8599]
[1742060783270,14.22877281,135.78,135.76,7.3658]
[1742060783471,20.0,135.81,135.76,7.3658]
[1742060783472,14.22877281,135.77,135.76,7.3658]
[1742060783968,14.22877281,135.77,135.74,7.367]
[1742060784182,14.22877281,135.75,135.74,7.367]
[1742060784775,14.22877281,135.76,135.74,7.367]
[1742060784981,14.22877281,135.76,135.73,18.448]
[1742060785376,20.0,135.79,135.74,14.22877281]
[1742060785588,34.22877281,135.79,135.74,14.22877281]
[1742060786089,14.22877281,135.78,135.73,32.67677281]
[1742060786287,14.22877281,135.79,135.74,14.22877281]
[1742060786800,14.22877281,135.8,135.75,14.22877281]
[1742060786983,0.14216157,135.84,135.77,1.6552]
[1742060787190,14.22877281,135.82,135.77,15.88397281]
[1742060788186,14.22877281,135.82,135.78,25.7769]
[1742060790396,14.22877281,135.83,135.78,40.00567281]
[1742060790886,14.22877281,135.84,135.79,14.22877281]
[1742060791273,14.22877281,135.84,135.78,40.00567281]
[1742060792191,14.22877281,135.85,135.8,40.00187281]
[1742060792896,14.22877281,135.84,135.8,25.7731]
[1742060793083,14.22877281,135.83,135.8,25.7731]
[1742060793482,34.22877281,135.85,135.8,25.7731]
[1742060793694,34.22877281,135.85,135.8,40.00187281]
[1742060794575,34.22877281,135.85,135.8,25.7731]
[1742060794781,14.22877281,135.84,135.8,25.7731]
[1742060795901,14.22877281,135.84,135.8,25.8031]
[1742060796200,34.22877281,135.85,135.8,25.8031]
[1742060796582,14.22877281,135.84,135.8,25.8031]
[1742060797487,14.22877281,135.83,135.8,25.8031]
[1742060799796,14.22877281,135.84,135.8,25.8031]
[1742060800483,14.22877281,135.86,135.81,14.22877281]
[1742060800691,14.22877281,135.86,135.82,1.6541]
[1742060801088,14.22877281,135.87,135.83,7.3621]
[1742060801395,34.22877281,135.87,135.83,25.7674]
[1742060801799,20.0,135.87,135.83,25.7674]
[1742060801999,14.22877281,135.89,135.84,14.22877281]
[1742060802181,14.51309595,135.9,135.84,14.22877281]
[1742060802380,14.22877281,135.89,135.84,14.22877281]
[1742060802600,14.22877281,135.89,135.83,39.99617281]
[1742060802988,14.22877281,135.88,135.83,25.7674]
[1742060803184,18.62285031,135.88,135.83,25.7674]
[1742060803384,18.62285031,135.88,135.83,39.99617281]
[1742060804409,14.22877281,135.88,135.83,39.99617281]
[1742060805281,14.22877281,135.88,135.83,25.7674]
[1742060805888,14.22877281,135.87,135.83,25.7674]
[1742060806711,14.22877281,135.88,135.83,25.7674]
[1742060807489,14.22877281,135.87,135.83,25.7674]
[1742060808104,18.62489527,135.87,135.83,25.7674]
[1742060809502,14.22877281,135.86,135.83,7.3621]
[1742060810207,14.22877281,135.85,135.83,7.3621]
[1742060813315,14.22877281,135.86,135.83,7.3621]
[1742060816109,14.22877281,135.84,135.81,7.3632]
[1742060816313,14.22877281,135.82,135.81,7.3632]
[1742060816629,14.22877281,135.82,135.8,7.3935]
[1742060817099,14.22877281,135.81,135.8,7.3935]
[1742060817815,14.22877281,135.82,135.8,0.03]
[1742060826124,20.28432314,135.81,135.8,0.03]
[1742060826429,34.51309595,135.81,135.8,0.03]
[1742060826811,38.91377088,135.81,135.8,0.03]
[1742060828125,46.27697088,135.81,135.8,0.03]
[1742060828829,64.92661974,135.81,135.8,0.03]
[1742060829208,122.94327924,135.81,135.8,0.03]
[1742060830814,0.28432314,135.8,135.74,1.5059]
[1742060831007,14.22877281,135.75,135.73,0.03]
[1742060831410,34.37093438,135.74,135.73,0.03]
[1742060831619,34.51309595,135.74,135.66,14.22877281]
[1742060831829,14.22877281,135.71,135.66,14.22877281]
[1742060832125,14.22877281,135.71,135.66,21.60007281]
[1742060832332,14.22877281,135.69,135.65,1.5059]
[1742060833025,14.22877281,135.7,135.65,8.8777]
[1742060833529,14.22877281,135.7,135.65,23.10647281]
[1742060835418,14.22877281,135.7,135.65,23.13647281]
[1742060836853,14.22877281,135.69,135.65,8.9077]
[1742060837711,65.3846595,135.73,135.65,8.9077]
[1742060837712,14.22877281,135.68,135.65,8.9077]
[1742060839941,14.22877281,135.67,135.65,8.9077]
[1742060840446,15.2745914,135.71,135.65,0.03]
[1742060840447,14.22877281,135.66,135.65,0.03]
[1742060847413,96.59783605,135.66,135.65,0.03]
[1742060847647,97.69940431,135.66,135.65,0.03]
[1742060850646,101.47166359,135.66,135.65,0.03]
[1742060854643,101.47166359,135.66,135.65,0.03]
[1742060855949,108.84296359,135.66,135.65,0.03]
[1742060856126,14.22877281,135.6,135.58,7.3757]
[1742060857327,14.22877281,135.59,135.57,7.3762]
[1742060862336,14.22877281,135.58,135.57,7.3762]
[1742060862953,14.22877281,135.58,135.52,89.32]
[1742060862954,157.88432314,135.57,135.46,44.2934]
[1742060863251,14.22877281,135.52,135.47,14.22877281]
[1742060863552,14.22877281,135.52,135.48,1.5079]
[1742060863856,14.22877281,135.52,135.49,7.3806]
[1742060864148,14.22877281,135.51,135.49,7.3806]
[1742060864350,14.22877281,135.53,135.49,7.3806]
[1742060864538,6.52,135.56,135.49,21.60937281]
[1742060864539,14.22877281,135.54,135.49,21.60937281]
[1742060864952,14.22877281,135.54,135.49,40.06087281]
[1742060866247,22.35034126,135.54,135.49,48.18244126]
[1742060866955,22.35034126,135.54,135.49,25.8321]
[1742060867155,22.35034126,135.53,135.49,25.8321]
[1742060868356,22.35034126,135.54,135.49,48.18244126]
[1742060868565,80.8,135.57,135.51,22.35034126]
[1742060868734,22.35034126,135.57,135.51,22.35034126]
[1742060869257,22.35034126,135.56,135.5,22.35034126]
[1742060869649,22.35034126,135.55,135.5,22.35034126]
[1742060870557,22.35034126,135.55,135.51,7.3795]
[1742060870760,22.35034126,135.54,135.51,7.3795]
[1742060871543,22.35034126,135.53,135.51,7.3795]
[1742060872036,0.14216157,135.56,135.51,7.3795]
[1742060872037,0.28432314,135.56,135.51,7.3795]
[1742060872240,22.35034126,135.55,135.51,7.3795]
[1742060873155,22.35034126,135.54,135.51,7.3795]
[1742060873940,22.35034126,135.54,135.5,25.8289]
[1742060874545,22.35034126,135.53,135.5,7.38]
[1742060875438,22.35034126,135.51,135.49,7.4105]
[1742060875965,22.35034126,135.5,135.49,0.03]
[1742060876257,22.6346644,135.5,135.49,0.03]
[1742060876936,22.6346644,135.5,135.45,1.6212]
[1742060877136,22.35034126,135.47,135.45,1.6212]
[1742060877361,22.35034126,135.47,135.46,7.3821]
[1742060877568,22.35034126,135.48,135.46,7.3821]
[1742060877739,22.35034126,135.47,135.45,9.0038]
[1742060879160,22.35034126,135.48,135.45,9.0038]
[1742060879945,22.35034126,135.47,135.45,9.0038]
[1742060880346,22.35034126,135.48,135.45,9.0038]
[1742060881263,22.35034126,135.47,135.45,9.0038]
[1742060882662,22.35034126,135.48,135.45,9.0038]
[1742060883162,9.07543846,135.5,135.45,49.81104126]
[1742060883366,9.07543846,135.5,135.46,22.35034126]
[1742060884162,31.42577972,135.52,135.47,54.44694126]
[1742060885241,0.063,135.56,135.5,22.35034126]
[1742060885445,0.063,135.56,135.52,22.35034126]
[1742060885664,0.063,135.56,135.51,22.35034126]
[1742060885966,22.41334126,135.56,135.51,22.35034126]
[1742060886173,22.41334126,135.56,135.52,25.8263]
[1742060886338,0.063,135.56,135.53,1.6441]
[1742060886859,22.41334126,135.56,135.53,1.6441]
[1742060887257,22.35034126,135.54,135.53,1.6441]
[1742060887469,22.35034126,135.54,135.52,25.8263]
[1742060887662,22.35034126,135.53,135.52,25.8263]
[1742060887866,22.35034126,135.55,135.52,25.8263]
[1742060888366,0.063,135.56,135.52,18.4474]
[1742060888568,22.35034126,135.55,135.52,18.4474]
[1742060889068,22.41334126,135.56,135.52,18.4474]
[1742060889658,0.063,135.56,135.52,18.4474]
[1742060890069,0.063,135.56,135.52,40.79774126]
[1742060890371,0.063,135.56,135.55,9.0214]
[1742060891767,22.35034126,135.6,135.55,49.81504126]
[1742060892068,22.35034126,135.62,135.56,22.35034126]
[1742060892245,22.35034126,135.62,135.58,25.8149]
[1742060892660,22.35034126,135.61,135.58,25.8149]
[1742060893356,22.35034126,135.62,135.58,25.8149]
[1742060894267,22.35034126,135.62,135.58,18.4392]
[1742060894476,22.35034126,135.62,135.55,121.3308]
[1742060894477,22.35034126,135.59,135.55,9.0209]
[1742060894650,22.35034126,135.56,135.55,1.6441]
[1742060894846,22.35034126,135.57,135.55,1.6441]
[1742060895066,22.35034126,135.57,135.55,9.0213]
[1742060895253,22.35034126,135.56,135.55,1.6441]
[1742060895458,22.35034126,135.56,135.53,6.6509]
[1742060895642,22.35034126,135.55,135.53,6.6509]
[1742060895846,22.35034126,135.55,135.53,14.0293]
[1742060896356,22.35034126,135.55,135.53,6.6509]
[1742060896772,22.35034126,135.55,135.52,1.6441]
[1742060896972,22.35034126,135.54,135.52,1.6441]
[1742060897492,22.35034126,135.55,135.52,9.0229]
[1742060897847,22.35034126,135.55,135.52,1.6441]
[1742060898273,22.35034126,135.55,135.52,9.023]
[1742060899776,22.41334126,135.55,135.52,9.023]
[1742060901974,22.41334126,135.55,135.52,1.6441]
[1742060902757,22.41334126,135.55,135.52,9.023]
[1742060903278,22.41334126,135.55,135.51,7.3793]
[1742060903479,22.35034126,135.54,135.51,7.3793]
[1742060907066,22.35034126,135.53,135.51,7.3793]
[1742060907366,22.35034126,135.53,135.5,15.5975]
[1742060907561,22.35034126,135.53,135.5,8.9466]
[1742060907877,22.35034126,135.52,135.5,1.5668]
[1742060908377,22.35034126,135.51,135.47,1.5668]
[1742060908581,22.35034126,135.49,135.47,1.5668]
[1742060909177,22.35034126,135.49,135.47,8.9485]
[1742060910379,4.4000604,135.5,135.48,22.35034126]
[1742060910881,22.35034126,135.53,135.48,22.35034126]
[1742060911461,22.35034126,135.53,135.49,25.8321]
[1742060911670,0.063,135.55,135.5,22.35034126]
[1742060911870,0.063,135.55,135.51,22.35034126]
[1742060913482,0.063,135.55,135.53,7.3784]
[1742060914992,0.063,135.55,135.53,29.72874126]
[1742060915686,0.063,135.55,135.54,22.35034126]
[1742060916284,0.063,135.55,135.54,29.72814126]
[1742060916968,0.063,135.55,135.54,7.3778]
[1742060919189,0.0001,135.55,135.54,7.3778]
[1742060919367,0.0001,135.55,135.54,29.72814126]
[1742060920388,0.0001,135.55,135.54,7.3778]
[1742060925395,0.0001,135.55,135.54,29.72814126]
[1742060927578,0.0001,135.56,135.54,29.72814126]
[1742060927897,0.0001,135.56,135.55,22.35034126]
[1742060928484,0.0001,135.56,135.55,31.29344126]
[1742060929389,0.0001,135.56,135.55,114.09344126]
[1742060930497,0.0001,135.56,135.55,15.4631]
[1742060932515,0.0001,135.56,135.55,37.81344126]
[1742060934102,0.0001,135.56,135.55,8.9431]
[1742060934307,0.0001,135.56,135.55,7.3773]
[1742060935703,0.0001,135.56,135.52,26.5125]
[1742060936201,22.35034126,135.55,135.53,7.3784]
[1742060936391,14.30189132,135.55,135.53,7.3784]
[1742060937400,14.30189132,135.55,135.51,7.3795]
[1742060937992,14.30189132,135.55,135.53,0.03]
[1742060938394,22.34808318,135.55,135.53,0.03]
[1742060938593,4.4056864,135.54,135.53,0.03]
[1742060940312,22.34808318,135.55,135.53,0.03]
[1742060941308,22.34808318,135.54,135.53,0.03]
[1742060943010,26.75438131,135.54,135.53,0.03]
[1742060946118,26.75438131,135.54,135.5,0.03]
[1742060946318,22.34808318,135.52,135.5,0.03]
[1742060947029,22.34808318,135.51,135.5,0.03]
[1742060948931,26.75438131,135.51,135.5,0.03]
[1742060950122,20.0,135.4,135.39,0.03]
[1742060950430,28.86808318,135.42,135.39,0.03]
[1742060950633,13.1627,135.47,135.39,0.03]
[1742060950926,18.79181043,135.46,135.39,0.03]
[1742060951097,22.34808318,135.43,135.39,0.03]
[1742060951300,22.34808318,135.44,135.39,0.03]
[1742060952205,4.40629813,135.46,135.39,0.03]
[1742060952406,11.47174371,135.45,135.41,22.34808318]
[1742060952929,11.47174371,135.45,135.42,7.3844]
[1742060953334,4.40629813,135.46,135.42,7.3844]
[1742060955726,22.34808318,135.47,135.42,7.3844]
[1742060957826,22.34808318,135.47,135.42,29.73248318]
[1742060958411,22.34808318,135.46,135.41,48.19518318]
[1742060959133,22.34808318,135.46,135.41,25.8471]
[1742060959333,22.34808318,135.43,135.41,7.3849]
[1742060960240,22.34808318,135.44,135.41,7.3849]
[1742060960437,13.1627,135.5,135.44,7.3833]
[1742060960612,22.34808318,135.48,135.44,7.3833]
[1742060961219,22.34808318,135.46,135.44,25.8416]
[1742060961534,22.34808318,135.47,135.44,25.8416]
[1742060962114,22.34808318,135.48,135.44,25.8416]
[1742060962519,22.34808318,135.47,135.44,25.8416]
[1742060963735,22.34808318,135.48,135.44,18.4583]
[1742060964535,22.34808318,135.47,135.44,18.4583]
[1742060967138,22.34808318,135.47,135.44,25.8416]
[1742060972240,22.41108318,135.47,135.44,25.8416]
[1742060976231,44.69616636,135.45,135.41,0.03]
[1742060976544,22.34808318,135.42,135.41,0.03]
[1742060983355,26.74370255,135.42,135.41,0.03]
[1742060985837,4.39561937,135.42,135.41,0.03]
[1742060986243,26.74370255,135.42,135.41,0.03]
[1742060986752,4.39561937,135.42,135.41,0.03]
[1742060987650,1.937e-05,135.42,135.41,34.99218318]
[1742060987854,1.937e-05,135.42,135.41,36.53508318]
[1742060988057,0.063,135.47,135.44,22.34808318]
[1742060989559,0.063,135.47,135.43,22.34808318]
[1742060991547,0.063,135.47,135.44,25.8416]
[1742060993335,0.063,135.47,135.44,25.8416]
[1742060994158,0.063,135.47,135.44,48.18968318]
[1742060994845,0.063,135.47,135.44,25.8416]
[1742060995657,1.10156826,135.52,135.46,20.0]
[1742060995838,15.28177867,135.55,135.51,22.34808318]
[1742060996031,11.53474371,135.55,135.51,22.34808318]
[1742060996540,11.53474371,135.55,135.52,22.34808318]
[1742060996954,11.53474371,135.55,135.53,22.34808318]
[1742060997534,22.96924513,135.56,135.54,22.34808318]
[1742060997734,8.884e-05,135.56,135.55,7.3773]
[1742060998667,22.34808318,135.59,135.55,7.3773]
[1742060999350,22.34808318,135.59,135.55,25.8206]
[1742061000263,7.8233,135.61,135.55,25.8206]
[1742061000439,22.41108318,135.61,135.56,22.34808318]
[1742061000641,0.063,135.61,135.56,22.34808318]
[1742061001035,0.063,135.61,135.57,22.34808318]
[1742061001841,0.063,135.61,135.58,7.3757]
[1742061002260,0.063,135.61,135.58,48.16298318]
[1742061002448,0.063,135.61,135.58,25.8149]
[1742061002763,0.063,135.61,135.58,7.3757]
[1742061003767,0.063,135.61,135.58,29.72378318]
[1742061004060,0.063,135.61,135.59,22.34808318]
[1742061004267,0.063,135.61,135.6,22.34808318]
[1742061004470,0.063,135.61,135.59,22.34808318]
[1742061005037,0.063,135.61,135.58,48.16298318]
[1742061005654,0.063,135.61,135.59,22.34808318]
[1742061005967,0.063,135.61,135.6,22.34808318]
[1742061006673,0.063,135.61,135.59,22.34808318]
[1742061007456,0.063,135.61,135.58,7.3757]
[1742061008266,22.41108318,135.61,135.58,7.3757]
[1742061009669,0.063,135.61,135.58,29.72378318]
[1742061009860,0.063,135.61,135.58,48.16298318]
[1742061010082,0.063,135.61,135.59,22.34808318]
[1742061011056,0.063,135.61,135.6,22.34808318]
[1742061012058,0.063,135.61,135.6,29.72268318]
[1742061015073,0.063,135.62,135.6,36.30878318]
[1742061015252,0.0001,135.62,135.61,22.34808318]
[1742061015455,0.0001,135.62,135.61,105.14808318]
[1742061016375,0.0001,135.62,135.61,114.18448318]
[1742061019655,0.0001,135.62,135.61,31.38448318]
[1742061028881,0.0001,135.62,135.61,114.18448318]
[1742061030879,0.0001,135.62,135.61,114.21448318]
[1742061031279,0.0001,135.62,135.61,90.204]
[1742061031581,0.0001,135.62,135.61,70.204]
[1742061032620,0.0001,135.62,135.61,0.03]
[1742061032786,22.34818318,135.62,135.61,0.03]
[1742061035891,0.0001,135.62,135.61,0.03]
[1742061037892,22.34818318,135.62,135.61,0.03]
[1742061041293,0.0001,135.62,135.61,0.03]
[1742061043969,14.28483629,135.62,135.61,0.03]
[1742061046297,22.32934265,135.62,135.61,0.03]
[1742061047493,29.70284265,135.62,135.61,0.03]
[1742061049194,29.98716579,135.62,135.61,0.03]
[1742061049393,29.70284265,135.62,135.61,0.03]
[1742061049591,22.32934265,135.62,135.61,0.03]
[1742061051597,29.70284265,135.62,135.61,0.03]
[1742061053007,29.98716579,135.62,135.61,0.03]
[1742061056792,22.32924265,135.57,135.56,0.03]
[1742061059101,22.32924265,135.58,135.56,0.03]
[1742061059404,20.0,135.59,135.56,0.03]
[1742061059405,42.32924265,135.59,135.56,0.03]
[1742061059800,22.32924265,135.58,135.56,0.03]
[1742061060396,22.32924265,135.6,135.56,0.03]
[1742061060600,22.32924265,135.6,135.56,7.4068]
[1742061061005,22.32924265,135.58,135.56,0.03]
[1742061061302,22.32924265,135.59,135.56,0.03]
[1742061061692,22.32924265,135.58,135.56,0.03]
[1742061062101,22.32924265,135.57,135.56,0.03]
[1742061068389,14.29903431,135.57,135.56,0.03]
[1742061069701,21.67523431,135.57,135.56,0.03]
[1742061070496,23.06112571,135.57,135.56,0.03]
[1742061070695,40.60920631,135.57,135.56,0.03]
[1742061074717,21.95955745,135.57,135.56,0.03]
[1742061076813,14.58335745,135.57,135.56,0.03]
[1742061077802,21.95955745,135.57,135.56,0.03]
[1742061081801,1.10156826,135.58,135.56,0.03]
[1742061082000,14.29903431,135.59,135.56,0.03]
[1742061082203,14.29903431,135.61,135.56,14.32903431]
[1742061082513,14.29913431,135.62,135.57,14.29903431]
[1742061083017,0.0001,135.62,135.58,14.29903431]
[1742061083802,14.29913431,135.62,135.57,14.29903431]
[1742061084402,14.29903431,135.61,135.56,40.14783431]
[1742061084617,0.0001,135.62,135.58,14.29903431]
[1742061084791,0.0001,135.62,135.59,14.29903431]
[1742061085920,0.0001,135.62,135.6,7.3746]
[1742061088004,0.0001,135.62,135.6,1.5566]
[1742061088319,0.0001,135.62,135.61,20.87993431]
[1742061090004,0.0001,135.62,135.61,28.25393431]
[1742061090423,0.0001,135.62,135.61,13.9549]
[1742061091228,0.0001,135.62,135.6,8.931]
[1742061091405,0.0001,135.62,135.6,1.5566]
[1742061091729,0.0001,135.62,135.6,8.9312]
[1742061092303,0.0001,135.62,135.6,1.5566]
[1742061092615,0.0001,135.62,135.6,1.0566]
[1742061094505,14.29913431,135.62,135.6,1.0566]
[1742061094701,14.29913431,135.62,135.59,7.3749]
[1742061094702,14.29903431,135.61,135.57,20.4766]
[1742061095324,14.29903431,135.61,135.57,13.9566]
[1742061095509,14.29903431,135.6,135.57,13.9566]
[1742061095711,14.29903431,135.61,135.57,13.9566]
[1742061098325,0.0001,135.62,135.59,14.29903431]
[1742061100145,0.0001,135.62,135.6,7.3746]
[1742061109337,0.0001,135.62,135.59,40.11203431]
[1742061110426,0.0001,135.62,135.6,14.29903431]
[1742061111124,0.0001,135.62,135.61,7.374]
[1742061113233,0.0001,135.62,135.6,7.4046]